[Event "December 19 Late 2023"]
[Site "https://www.chess.com"]
[Date "2023.12.19"]
[Round "3"]
[White "Manukyan, Sargis A."]
[Black "Rasulov, Vugar"]
[Result "0-1"]
[Board "18"]
[TimeControl "180+1"]
[WhiteFideId "13303970"]
[BlackFideId "13402390"]
[WhiteElo "2186"]
[BlackElo "2517"]
[WhiteTeam "ARM"]
[BlackTeam "AZE"]
[WhiteClock "0:00:00"]
[BlackClock "0:00:30"]

1. d4 {[%clk 0:03:00]}  Nf6 {[%clk 0:02:59]} 2. c4 {[%clk 0:03:01]}  e6 {[%clk 0:03:00]} 3. Nc3 {[%clk 0:03:02]}  d5 {[%clk 0:02:58]} 4. cxd5 {[%clk 0:03:02]}  exd5 {[%clk 0:02:58]} 5. Bg5 {[%clk 0:03:02]}  Nbd7 {[%clk 0:02:57]} 6. e3 {[%clk 0:03:02]}  Be7 {[%clk 0:02:56]} 7. Bd3 {[%clk 0:03:03]}  c6 {[%clk 0:02:54]} 8. Qc2 {[%clk 0:03:03]}  Nf8 {[%clk 0:02:53]} 9. Nf3 {[%clk 0:03:03]}  Ne6 {[%clk 0:02:54]} 10. Bh4 {[%clk 0:03:02]}  g6 {[%clk 0:02:54]} 11. O-O {[%clk 0:03:01]}  Ng7 {[%clk 0:02:53]} 12. Bxf6 {[%clk 0:02:59]}  Bxf6 {[%clk 0:02:53]} 13. b4 {[%clk 0:02:59]}  O-O {[%clk 0:02:50]} 14. b5 {[%clk 0:03:00]}  Bg4 {[%clk 0:02:48]} 15. Nd2 {[%clk 0:02:56]}  Bf5 {[%clk 0:02:41]} 16. Bxf5 {[%clk 0:02:55]}  Nxf5 {[%clk 0:02:42]} 17. bxc6 {[%clk 0:02:55]}  bxc6 {[%clk 0:02:43]} 18. Na4 {[%clk 0:02:54]}  Rc8 {[%clk 0:02:40]} 19. Rab1 {[%clk 0:02:53]}  Re8 {[%clk 0:02:36]} 20. Rb7 {[%clk 0:02:48]}  Re7 {[%clk 0:02:29]} 21. Rfb1 {[%clk 0:02:48]}  h5 {[%clk 0:02:25]} 22. Nc5 {[%clk 0:02:42]}  Nd6 {[%clk 0:02:23]} 23. Rxe7 {[%clk 0:02:41]}  Qxe7 {[%clk 0:02:24]} 24. h3 {[%clk 0:02:34]}  Kg7 {[%clk 0:02:21]} 25. Qd3 {[%clk 0:02:29]}  Rc7 {[%clk 0:01:54]} 26. Rb8 {[%clk 0:02:26]}  Nf5 {[%clk 0:01:38]} 27. Ndb3 {[%clk 0:02:12]}  Qd6 {[%clk 0:01:36]} 28. Ra8 {[%clk 0:01:58]}  Re7 {[%clk 0:01:36]} 29. Qa6 {[%clk 0:01:56]}  Nxd4 {[%clk 0:01:29]} 30. Rxa7 {[%clk 0:01:39]}  Rxa7 {[%clk 0:01:16]} 31. Qxa7 {[%clk 0:01:39]}  Ne2+ {[%clk 0:01:16]} 32. Kf1 {[%clk 0:01:38]}  Nc3 {[%clk 0:01:17]} 33. g3 {[%clk 0:01:26]}  h4 {[%clk 0:01:16]} 34. Kg2 {[%clk 0:01:10]}  hxg3 {[%clk 0:01:16]} 35. fxg3 {[%clk 0:01:11]}  Ne2 {[%clk 0:01:13]} 36. Kf2 {[%clk 0:00:59]}  Nxg3 {[%clk 0:01:13]} 37. Qd7 {[%clk 0:00:53]}  Qe5 {[%clk 0:01:07]} 38. Ne6+ {[%clk 0:00:48]}  Qxe6 {[%clk 0:00:53]} 39. Qxe6 {[%clk 0:00:48]}  Nh1+ {[%clk 0:00:52]} 40. Kg2 {[%clk 0:00:48]}  fxe6 {[%clk 0:00:53]} 41. a4 {[%clk 0:00:47]}  Kf7 {[%clk 0:00:48]} 42. a5 {[%clk 0:00:45]}  Bd8 {[%clk 0:00:48]} 43. a6 {[%clk 0:00:36]}  Bb6 {[%clk 0:00:48]} 44. Nd4 {[%clk 0:00:36]}  c5 {[%clk 0:00:45]} 45. Nb5 {[%clk 0:00:26]}  c4 {[%clk 0:00:43]} 46. e4 {[%clk 0:00:18]}  Kf6 {[%clk 0:00:37]} 47. exd5 {[%clk 0:00:17]}  exd5 {[%clk 0:00:38]} 48. Kxh1 {[%clk 0:00:15]}  Ke5 {[%clk 0:00:30]} 49. a7 {[%clk 0:00:15]}  Bxa7 {[%clk 0:00:30]} 50. Nxa7 {[%clk 0:00:16]}  c3 {[%clk 0:00:29]} 51. Nc6+ {[%clk 0:00:16]}  Ke4 {[%clk 0:00:29]} 52. Nb4 {[%clk 0:00:16]}  d4 {[%clk 0:00:30]} 53. Kg2 {[%clk 0:00:14]}  d3 {[%clk 0:00:31]} 54. Kf2 {[%clk 0:00:14]}  c2 {[%clk 0:00:30]} 55. Na2 {[%clk 0:00:11]}  d2 {[%clk 0:00:30]} 56. Nc3+ {[%clk 0:00:06]}  Kd3 {[%clk 0:00:30]} 57. Ne2 {[%clk 0:00:05]}  c1=Q {[%clk 0:00:30]} 58. Nxc1+ {[%clk 0:00:00]}  dxc1=Q {[%clk 0:00:30]} 0-1

[Event "December 19 Late 2023"]
[Site "https://www.chess.com"]
[Date "2023.12.19"]
[Round "3"]
[White "Sturt, Raven"]
[Black "Kovalev, Vladislav"]
[Result "0-1"]
[Board "20"]
[TimeControl "180+1"]
[WhiteFideId "2007304"]
[BlackFideId "13504398"]
[WhiteElo "2408"]
[BlackElo "2539"]
[WhiteTeam "USA"]
[BlackTeam "FID"]
[WhiteClock "0:00:00"]
[BlackClock "0:00:06"]

1. f4 {[%clk 0:03:00]}  Nh6 {[%clk 0:02:57]} 2. Nf3 {[%clk 0:03:00]}  d5 {[%clk 0:02:57]} 3. d3 {[%clk 0:03:00]}  g6 {[%clk 0:02:47]} 4. Qd2 {[%clk 0:03:01]}  d4 {[%clk 0:02:44]} 5. c3 {[%clk 0:02:58]}  c5 {[%clk 0:02:45]} 6. cxd4 {[%clk 0:02:58]}  cxd4 {[%clk 0:02:45]} 7. Na3 {[%clk 0:02:44]}  Nc6 {[%clk 0:02:40]} 8. g3 {[%clk 0:02:42]}  Bg7 {[%clk 0:02:22]} 9. Bg2 {[%clk 0:02:40]}  O-O {[%clk 0:02:23]} 10. O-O {[%clk 0:02:39]}  Nf5 {[%clk 0:02:24]} 11. Nc2 {[%clk 0:02:39]}  h5 {[%clk 0:02:23]} 12. b4 {[%clk 0:02:38]}  Ne3 {[%clk 0:02:20]} 13. b5 {[%clk 0:02:26]}  Nxf1 {[%clk 0:02:14]} 14. Kxf1 {[%clk 0:02:26]}  Nb8 {[%clk 0:01:51]} 15. Bb2 {[%clk 0:02:19]}  a6 {[%clk 0:01:50]} 16. a4 {[%clk 0:02:12]}  axb5 {[%clk 0:01:50]} 17. axb5 {[%clk 0:02:12]}  Rxa1+ {[%clk 0:01:50]} 18. Bxa1 {[%clk 0:02:12]}  Qb6 {[%clk 0:01:44]} 19. Qb4 {[%clk 0:02:00]}  Bg4 {[%clk 0:01:21]} 20. Nfxd4 {[%clk 0:01:57]}  e5 {[%clk 0:01:18]} 21. h3 {[%clk 0:01:45]}  Bd7 {[%clk 0:01:08]} 22. Nb3 {[%clk 0:00:51]}  Rc8 {[%clk 0:00:59]} 23. Na3 {[%clk 0:00:36]}  Na6 {[%clk 0:00:41]} 24. Nc4 {[%clk 0:00:26]}  Qxb5 {[%clk 0:00:10]} 25. Qxb5 {[%clk 0:00:27]}  Bxb5 {[%clk 0:00:11]} 26. Nd6 {[%clk 0:00:27]}  Nc5 {[%clk 0:00:04]} 27. Nxc8 {[%clk 0:00:13]}  Nxb3 {[%clk 0:00:04]} 28. Bc3 {[%clk 0:00:12]}  exf4 {[%clk 0:00:03]} 29. Bxg7 {[%clk 0:00:13]}  Kxg7 {[%clk 0:00:04]} 30. gxf4 {[%clk 0:00:12]}  Ba6 {[%clk 0:00:03]} 31. Nd6 {[%clk 0:00:10]}  b6 {[%clk 0:00:04]} 32. Bd5 {[%clk 0:00:10]}  Nd4 {[%clk 0:00:03]} 33. Bxf7 {[%clk 0:00:09]}  Kf6 {[%clk 0:00:02]} 34. Bc4 {[%clk 0:00:07]}  b5 {[%clk 0:00:02]} 35. Bd5 {[%clk 0:00:06]}  b4 {[%clk 0:00:01]} 36. Kf2 {[%clk 0:00:06]}  b3 {[%clk 0:00:02]} 37. Ne4+ {[%clk 0:00:03]}  Ke7 {[%clk 0:00:01]} 38. Nd2 {[%clk 0:00:03]}  b2 {[%clk 0:00:02]} 39. e3 {[%clk 0:00:03]}  Nc2 {[%clk 0:00:02]} 40. Ba2 {[%clk 0:00:04]}  Bxd3 {[%clk 0:00:01]} 41. Bb1 {[%clk 0:00:04]}  Nb4 {[%clk 0:00:02]} 42. Bxd3 {[%clk 0:00:03]}  Nxd3+ {[%clk 0:00:03]} 43. Ke2 {[%clk 0:00:04]}  Nc5 {[%clk 0:00:03]} 44. Kd1 {[%clk 0:00:04]}  Ne4 {[%clk 0:00:04]} 45. Nb1 {[%clk 0:00:03]}  Nf2+ {[%clk 0:00:04]} 46. Kc2 {[%clk 0:00:04]}  Nxh3 {[%clk 0:00:05]} 47. Kxb2 {[%clk 0:00:04]}  h4 {[%clk 0:00:06]} 48. Nd2 {[%clk 0:00:03]}  Nf2 {[%clk 0:00:05]} 49. Nf3 {[%clk 0:00:03]}  h3 {[%clk 0:00:04]} 50. Kc2 {[%clk 0:00:03]}  Ng4 {[%clk 0:00:05]} 51. Kd3 {[%clk 0:00:03]}  h2 {[%clk 0:00:05]} 52. Nxh2 {[%clk 0:00:03]}  Nxh2 {[%clk 0:00:06]} 53. e4 {[%clk 0:00:03]}  Kf6 {[%clk 0:00:05]} 54. Ke3 {[%clk 0:00:03]}  Ng4+ {[%clk 0:00:05]} 55. Kf3 {[%clk 0:00:03]}  Nh6 {[%clk 0:00:06]} 56. Kg3 {[%clk 0:00:03]}  Nf7 {[%clk 0:00:06]} 57. Kg4 {[%clk 0:00:03]}  Nh6+ {[%clk 0:00:05]} 58. Kf3 {[%clk 0:00:03]}  Ke6 {[%clk 0:00:05]} 59. f5+ {[%clk 0:00:00]}  Nxf5 {[%clk 0:00:06]} 0-1

[Event "December 19 Late 2023"]
[Site "https://www.chess.com"]
[Date "2023.12.19"]
[Round "3"]
[White "Karttunen, Mika"]
[Black "Popov, Konstantin"]
[Result "0-1"]
[Board "26"]
[TimeControl "180+1"]
[WhiteFideId "502081"]
[BlackFideId "34137910"]
[WhiteElo "2396"]
[BlackElo "2340"]
[WhiteTeam "FIN"]
[BlackTeam "FID"]
[WhiteClock "0:00:02"]
[BlackClock "0:00:07"]

1. e4 {[%clk 0:03:00]}  c5 {[%clk 0:02:59]} 2. Nf3 {[%clk 0:03:00]}  d6 {[%clk 0:03:00]} 3. d4 {[%clk 0:03:00]}  Nf6 {[%clk 0:03:00]} 4. Nc3 {[%clk 0:02:59]}  cxd4 {[%clk 0:03:00]} 5. Nxd4 {[%clk 0:02:59]}  a6 {[%clk 0:03:00]} 6. f3 {[%clk 0:02:56]}  e5 {[%clk 0:03:00]} 7. Nb3 {[%clk 0:02:55]}  Be6 {[%clk 0:03:00]} 8. Be3 {[%clk 0:02:54]}  h5 {[%clk 0:03:00]} 9. Qd2 {[%clk 0:02:53]}  Nbd7 {[%clk 0:03:00]} 10. Nd5 {[%clk 0:02:36]}  Bxd5 {[%clk 0:03:00]} 11. exd5 {[%clk 0:02:36]}  g6 {[%clk 0:03:00]} 12. c4 {[%clk 0:02:35]}  b6 {[%clk 0:02:59]} 13. Be2 {[%clk 0:02:33]}  a5 {[%clk 0:02:59]} 14. Rc1 {[%clk 0:02:25]}  Bg7 {[%clk 0:02:57]} 15. h3 {[%clk 0:02:23]}  h4 {[%clk 0:02:54]} 16. Bg5 {[%clk 0:02:09]}  Rh5 {[%clk 0:02:44]} 17. f4 {[%clk 0:01:20]}  Rxg5 {[%clk 0:02:43]} 18. fxg5 {[%clk 0:01:20]}  Ne4 {[%clk 0:02:43]} 19. Qe3 {[%clk 0:01:17]}  Nxg5 {[%clk 0:02:33]} 20. O-O {[%clk 0:01:17]}  f5 {[%clk 0:02:28]} 21. Nd4 {[%clk 0:01:07]}  Qf6 {[%clk 0:02:19]} 22. Ne6 {[%clk 0:00:52]}  Nxe6 {[%clk 0:02:14]} 23. dxe6 {[%clk 0:00:52]}  Qxe6 {[%clk 0:02:15]} 24. Rcd1 {[%clk 0:00:37]}  e4 {[%clk 0:02:08]} 25. b3 {[%clk 0:00:31]}  Ke7 {[%clk 0:01:57]} 26. Qg5+ {[%clk 0:00:31]}  Qf6 {[%clk 0:01:58]} 27. Qf4 {[%clk 0:00:30]}  Rd8 {[%clk 0:01:54]} 28. Rd5 {[%clk 0:00:30]}  Qe6 {[%clk 0:01:34]} 29. Kh1 {[%clk 0:00:30]}  Bf6 {[%clk 0:01:25]} 30. Qh6 {[%clk 0:00:29]}  Ne5 {[%clk 0:01:20]} 31. Rfd1 {[%clk 0:00:28]}  Kf7 {[%clk 0:00:56]} 32. Qh7+ {[%clk 0:00:27]}  Kf8 {[%clk 0:00:47]} 33. Qc7 {[%clk 0:00:27]}  Be7 {[%clk 0:00:42]} 34. Qxb6 {[%clk 0:00:27]}  f4 {[%clk 0:00:40]} 35. Qf2 {[%clk 0:00:17]}  g5 {[%clk 0:00:36]} 36. Rxa5 {[%clk 0:00:15]}  Kg7 {[%clk 0:00:31]} 37. Ra7 {[%clk 0:00:15]}  Rf8 {[%clk 0:00:31]} 38. c5 {[%clk 0:00:13]}  d5 {[%clk 0:00:21]} 39. Qd4 {[%clk 0:00:13]}  f3 {[%clk 0:00:21]} 40. Bf1 {[%clk 0:00:13]}  Rd8 {[%clk 0:00:17]} 41. c6 {[%clk 0:00:12]}  Kf7 {[%clk 0:00:09]} 42. c7 {[%clk 0:00:12]}  Rc8 {[%clk 0:00:09]} 43. Qxd5 {[%clk 0:00:13]}  Qxd5 {[%clk 0:00:09]} 44. Rxd5 {[%clk 0:00:14]}  Ke6 {[%clk 0:00:10]} 45. Rd4 {[%clk 0:00:13]}  Bc5 {[%clk 0:00:10]} 46. Ra6+ {[%clk 0:00:11]}  Kf5 {[%clk 0:00:09]} 47. Rd5 {[%clk 0:00:12]}  Rxc7 {[%clk 0:00:09]} 48. gxf3 {[%clk 0:00:11]}  exf3 {[%clk 0:00:10]} 49. Bd3+ {[%clk 0:00:11]}  Kf4 {[%clk 0:00:10]} 50. Rf6+ {[%clk 0:00:11]}  Kg3 {[%clk 0:00:09]} 51. Be4 {[%clk 0:00:10]}  Be3 {[%clk 0:00:08]} 52. Bxf3 {[%clk 0:00:10]}  Nxf3 {[%clk 0:00:07]} 53. Rd1 {[%clk 0:00:02]}  Rc2 {[%clk 0:00:07]} 0-1

[Event "December 19 Late 2023"]
[Site "https://www.chess.com"]
[Date "2023.12.19"]
[Round "3"]
[White "Mahdavi, Reza"]
[Black "Sivakumar, Shaaketh"]
[Result "1-0"]
[Board "28"]
[TimeControl "180+1"]
[WhiteFideId "12595926"]
[BlackFideId "30940176"]
[WhiteElo "2426"]
[BlackElo "2292"]
[WhiteTeam "IRI"]
[BlackTeam "USA"]
[WhiteClock "0:00:49"]
[BlackClock "0:00:00"]

1. e4 {[%clk 0:03:00]}  e6 {[%clk 0:02:58]} 2. d4 {[%clk 0:02:57]}  d5 {[%clk 0:02:58]} 3. Nd2 {[%clk 0:02:52]}  c5 {[%clk 0:02:57]} 4. Ngf3 {[%clk 0:02:51]}  Nc6 {[%clk 0:02:56]} 5. exd5 {[%clk 0:02:49]}  exd5 {[%clk 0:02:55]} 6. Bb5 {[%clk 0:02:49]}  Qe7+ {[%clk 0:02:54]} 7. Qe2 {[%clk 0:02:47]}  Qxe2+ {[%clk 0:02:54]} 8. Kxe2 {[%clk 0:02:48]}  a6 {[%clk 0:02:53]} 9. Bxc6+ {[%clk 0:02:46]}  bxc6 {[%clk 0:02:54]} 10. dxc5 {[%clk 0:02:46]}  Bxc5 {[%clk 0:02:53]} 11. Nb3 {[%clk 0:02:47]}  Bd6 {[%clk 0:02:52]} 12. h3 {[%clk 0:02:47]}  a5 {[%clk 0:02:51]} 13. Be3 {[%clk 0:02:38]}  Ba6+ {[%clk 0:02:50]} 14. Kd2 {[%clk 0:02:37]}  Ne7 {[%clk 0:02:48]} 15. Rae1 {[%clk 0:02:31]}  f6 {[%clk 0:02:42]} 16. Bc5 {[%clk 0:02:31]}  Kd7 {[%clk 0:02:40]} 17. Nfd4 {[%clk 0:02:27]}  Bc8 {[%clk 0:01:54]} 18. Re6 {[%clk 0:02:21]}  Bxc5 {[%clk 0:01:46]} 19. Nxc5+ {[%clk 0:02:21]}  Ke8 {[%clk 0:01:44]} 20. Re3 {[%clk 0:02:15]}  Kf7 {[%clk 0:01:43]} 21. Rhe1 {[%clk 0:02:16]}  Nf5 {[%clk 0:01:24]} 22. Nxf5 {[%clk 0:02:13]}  Bxf5 {[%clk 0:01:25]} 23. Re7+ {[%clk 0:02:14]}  Kg6 {[%clk 0:01:24]} 24. g4 {[%clk 0:02:10]}  Bc8 {[%clk 0:01:23]} 25. f4 {[%clk 0:02:05]}  h5 {[%clk 0:01:21]} 26. f5+ {[%clk 0:02:04]}  Kh6 {[%clk 0:01:21]} 27. Rc7 {[%clk 0:01:59]}  g6 {[%clk 0:01:05]} 28. Rxc6 {[%clk 0:01:50]}  hxg4 {[%clk 0:00:49]} 29. hxg4 {[%clk 0:01:50]}  gxf5 {[%clk 0:00:47]} 30. gxf5 {[%clk 0:01:50]}  Bxf5 {[%clk 0:00:44]} 31. Rxf6+ {[%clk 0:01:48]}  Kg5 {[%clk 0:00:45]} 32. Rc6 {[%clk 0:01:39]}  Rh2+ {[%clk 0:00:43]} 33. Re2 {[%clk 0:01:39]}  Rah8 {[%clk 0:00:38]} 34. Ne6+ {[%clk 0:01:37]}  Kg4 {[%clk 0:00:28]} 35. Nd4 {[%clk 0:01:35]}  Be4 {[%clk 0:00:28]} 36. Rc7 {[%clk 0:01:27]}  Rxe2+ {[%clk 0:00:24]} 37. Nxe2 {[%clk 0:01:28]}  Rh1 {[%clk 0:00:20]} 38. Rg7+ {[%clk 0:01:26]}  Kf3 {[%clk 0:00:21]} 39. Rf7+ {[%clk 0:01:19]}  Kg4 {[%clk 0:00:21]} 40. a3 {[%clk 0:01:10]}  Rh2 {[%clk 0:00:20]} 41. b4 {[%clk 0:01:10]}  axb4 {[%clk 0:00:19]} 42. axb4 {[%clk 0:01:11]}  Rh6 {[%clk 0:00:18]} 43. b5 {[%clk 0:01:10]}  Rh1 {[%clk 0:00:10]} 44. Rg7+ {[%clk 0:01:05]}  Kf3 {[%clk 0:00:11]} 45. b6 {[%clk 0:01:02]}  Rb1 {[%clk 0:00:10]} 46. Nd4+ {[%clk 0:01:01]}  Kf4 {[%clk 0:00:10]} 47. Nb3 {[%clk 0:01:02]}  Rb2 {[%clk 0:00:09]} 48. b7 {[%clk 0:00:51]}  Rxc2+ {[%clk 0:00:10]} 49. Kd1 {[%clk 0:00:51]}  Rc3 {[%clk 0:00:02]} 50. b8=Q+ {[%clk 0:00:51]}  Ke3 {[%clk 0:00:00]} 51. Rg3+ {[%clk 0:00:49]} 1-0

[Event "December 19 Late 2023"]
[Site "https://www.chess.com"]
[Date "2023.12.19"]
[Round "3"]
[White "Bold, Andre"]
[Black "Beerdsen, Thomas"]
[Result "0-1"]
[Board "29"]
[TimeControl "180+1"]
[WhiteFideId "16208471"]
[BlackFideId "1030108"]
[WhiteElo "2110"]
[BlackElo "2550"]
[WhiteTeam "GER"]
[BlackTeam "NED"]
[WhiteClock "0:00:19"]
[BlackClock "0:01:12"]

1. Nf3 {[%clk 0:03:00]}  d5 {[%clk 0:02:59]} 2. g3 {[%clk 0:02:59]}  g6 {[%clk 0:02:59]} 3. Bg2 {[%clk 0:02:59]}  Bg7 {[%clk 0:02:59]} 4. O-O {[%clk 0:02:59]}  Nf6 {[%clk 0:03:00]} 5. c4 {[%clk 0:03:00]}  c6 {[%clk 0:02:59]} 6. cxd5 {[%clk 0:02:57]}  cxd5 {[%clk 0:03:00]} 7. d4 {[%clk 0:02:58]}  O-O {[%clk 0:03:01]} 8. Ne5 {[%clk 0:02:58]}  Ne4 {[%clk 0:03:00]} 9. Nc3 {[%clk 0:02:57]}  Nxc3 {[%clk 0:02:59]} 10. bxc3 {[%clk 0:02:56]}  Nd7 {[%clk 0:02:53]} 11. Nxd7 {[%clk 0:02:53]}  Qxd7 {[%clk 0:02:50]} 12. Qb3 {[%clk 0:02:53]}  e6 {[%clk 0:02:49]} 13. Ba3 {[%clk 0:02:50]}  Rd8 {[%clk 0:02:46]} 14. e3 {[%clk 0:02:50]}  b6 {[%clk 0:02:43]} 15. Rfc1 {[%clk 0:02:40]}  Ba6 {[%clk 0:02:43]} 16. Bf1 {[%clk 0:02:40]}  Bxf1 {[%clk 0:02:43]} 17. Kxf1 {[%clk 0:02:41]}  Rac8 {[%clk 0:02:34]} 18. Kg1 {[%clk 0:02:29]}  Rc4 {[%clk 0:02:33]} 19. Bb2 {[%clk 0:02:23]}  Rdc8 {[%clk 0:02:26]} 20. a4 {[%clk 0:02:23]}  h5 {[%clk 0:02:26]} 21. h4 {[%clk 0:02:21]}  e5 {[%clk 0:02:20]} 22. Re1 {[%clk 0:02:16]}  Qg4 {[%clk 0:02:12]} 23. Qd1 {[%clk 0:01:57]}  Qf5 {[%clk 0:02:06]} 24. a5 {[%clk 0:01:49]}  b5 {[%clk 0:02:05]} 25. a6 {[%clk 0:01:49]}  R8c6 {[%clk 0:02:01]} 26. Ra5 {[%clk 0:01:45]}  Rf6 {[%clk 0:01:53]} 27. Qe2 {[%clk 0:01:38]}  Rb6 {[%clk 0:01:48]} 28. e4 {[%clk 0:01:24]}  dxe4 {[%clk 0:01:43]} 29. Qxe4 {[%clk 0:01:25]}  Qxe4 {[%clk 0:01:39]} 30. Rxe4 {[%clk 0:01:26]}  exd4 {[%clk 0:01:39]} 31. cxd4 {[%clk 0:01:25]}  Rc2 {[%clk 0:01:39]} 32. Re8+ {[%clk 0:01:03]}  Kh7 {[%clk 0:01:39]} 33. Ba1 {[%clk 0:00:45]}  Rf6 {[%clk 0:01:34]} 34. f4 {[%clk 0:00:37]}  Re6 {[%clk 0:01:15]} 35. Rxe6 {[%clk 0:00:34]}  fxe6 {[%clk 0:01:16]} 36. Kf1 {[%clk 0:00:28]}  b4 {[%clk 0:01:17]} 37. Rc5 {[%clk 0:00:18]}  Rxc5 {[%clk 0:01:10]} 38. dxc5 {[%clk 0:00:19]}  Bxa1 {[%clk 0:01:10]} 39. c6 {[%clk 0:00:19]}  b3 {[%clk 0:01:11]} 40. c7 {[%clk 0:00:19]}  b2 {[%clk 0:01:12]} 41. c8=Q {[%clk 0:00:19]}  b1=Q+ {[%clk 0:01:13]} 42. Kg2 {[%clk 0:00:19]}  Qe4+ {[%clk 0:01:13]} 43. Kh3 {[%clk 0:00:19]}  Qh1# {[%clk 0:01:12]} 0-1

[Event "December 19 Late 2023"]
[Site "https://www.chess.com"]
[Date "2023.12.19"]
[Round "3"]
[White "Korchynskyi, Mykola"]
[Black "Livaic, Leon"]
[Result "1-0"]
[Board "33"]
[TimeControl "180+1"]
[WhiteFideId "34138005"]
[BlackFideId "14531534"]
[WhiteElo "2007"]
[BlackElo "2541"]
[WhiteTeam "UKR"]
[BlackTeam "CRO"]
[WhiteClock "0:00:10"]
[BlackClock "0:00:02"]

1. d4 {[%clk 0:02:55]}  Nf6 {[%clk 0:02:59]} 2. c4 {[%clk 0:02:55]}  g6 {[%clk 0:02:59]} 3. Nc3 {[%clk 0:02:55]}  Bg7 {[%clk 0:02:59]} 4. e4 {[%clk 0:02:53]}  d6 {[%clk 0:03:00]} 5. Be2 {[%clk 0:02:51]}  O-O {[%clk 0:02:56]} 6. Be3 {[%clk 0:02:51]}  Nbd7 {[%clk 0:02:56]} 7. Nf3 {[%clk 0:02:40]}  e5 {[%clk 0:02:55]} 8. d5 {[%clk 0:02:35]}  Nc5 {[%clk 0:02:41]} 9. Nd2 {[%clk 0:02:18]}  a5 {[%clk 0:02:40]} 10. O-O {[%clk 0:02:10]}  Ne8 {[%clk 0:02:37]} 11. a3 {[%clk 0:02:05]}  f5 {[%clk 0:02:26]} 12. exf5 {[%clk 0:02:06]}  gxf5 {[%clk 0:02:14]} 13. f4 {[%clk 0:02:06]}  exf4 {[%clk 0:01:55]} 14. Bxf4 {[%clk 0:02:05]}  a4 {[%clk 0:01:54]} 15. Nf3 {[%clk 0:02:02]}  Nb3 {[%clk 0:01:45]} 16. Rb1 {[%clk 0:02:02]}  Bd7 {[%clk 0:01:45]} 17. Bd3 {[%clk 0:01:58]}  Nf6 {[%clk 0:01:42]} 18. h3 {[%clk 0:01:54]}  Qe8 {[%clk 0:01:35]} 19. Re1 {[%clk 0:01:53]}  Qh5 {[%clk 0:01:34]} 20. Ng5 {[%clk 0:01:50]}  Nc5 {[%clk 0:01:14]} 21. Qc2 {[%clk 0:01:30]}  Nfe4 {[%clk 0:00:58]} 22. Nf3 {[%clk 0:01:08]}  Rae8 {[%clk 0:00:51]} 23. Re2 {[%clk 0:01:00]}  Kh8 {[%clk 0:00:36]} 24. Rbe1 {[%clk 0:01:00]}  Rg8 {[%clk 0:00:36]} 25. Kh1 {[%clk 0:00:42]}  Bf6 {[%clk 0:00:26]} 26. Nd2 {[%clk 0:00:24]}  Nxd3 {[%clk 0:00:19]} 27. Qxd3 {[%clk 0:00:15]}  Nf2+ {[%clk 0:00:18]} 28. Rxf2 {[%clk 0:00:16]}  Rxe1+ {[%clk 0:00:18]} 29. Kh2 {[%clk 0:00:17]}  Re7 {[%clk 0:00:11]} 30. Ne2 {[%clk 0:00:15]}  Bh4 {[%clk 0:00:10]} 31. Bg3 {[%clk 0:00:14]}  Bxg3+ {[%clk 0:00:05]} 32. Nxg3 {[%clk 0:00:15]}  Qh4 {[%clk 0:00:04]} 33. Ndf1 {[%clk 0:00:09]}  f4 {[%clk 0:00:04]} 34. Qd4+ {[%clk 0:00:09]}  Rgg7 {[%clk 0:00:02]} 35. Rxf4 {[%clk 0:00:10]}  Qg5 {[%clk 0:00:02]} 36. Rf8# {[%clk 0:00:10]} 1-0

[Event "December 19 Late 2023"]
[Site "https://www.chess.com"]
[Date "2023.12.19"]
[Round "3"]
[White "Rogov, Matfey"]
[Black "Boruchovsky, Avital"]
[Result "1/2-1/2"]
[Board "34"]
[TimeControl "180+1"]
[WhiteFideId "44191308"]
[BlackFideId "2800055"]
[WhiteElo "2057"]
[BlackElo "2450"]
[WhiteTeam "RUS"]
[BlackTeam "ISR"]
[WhiteClock "0:00:04"]
[BlackClock "0:00:03"]

1. Nc3 {[%clk 0:03:00]}  e5 {[%clk 0:02:58]} 2. Nf3 {[%clk 0:03:00]}  Nc6 {[%clk 0:02:57]} 3. d4 {[%clk 0:03:01]}  exd4 {[%clk 0:02:51]} 4. Nxd4 {[%clk 0:03:01]}  Bb4 {[%clk 0:02:51]} 5. Nxc6 {[%clk 0:02:44]}  Bxc3+ {[%clk 0:02:51]} 6. bxc3 {[%clk 0:02:45]}  dxc6 {[%clk 0:02:52]} 7. Qd4 {[%clk 0:02:37]}  Nf6 {[%clk 0:02:48]} 8. Ba3 {[%clk 0:02:36]}  Be6 {[%clk 0:02:33]} 9. e3 {[%clk 0:02:26]}  b6 {[%clk 0:02:29]} 10. Rd1 {[%clk 0:02:11]}  Qxd4 {[%clk 0:02:15]} 11. cxd4 {[%clk 0:02:12]}  Bxa2 {[%clk 0:02:14]} 12. Ba6 {[%clk 0:01:53]}  Kd7 {[%clk 0:01:58]} 13. c4 {[%clk 0:01:40]}  Bb3 {[%clk 0:01:57]} 14. Rc1 {[%clk 0:01:32]}  Rhb8 {[%clk 0:01:33]} 15. Rb1 {[%clk 0:00:57]}  Bc2 {[%clk 0:01:27]} 16. Rb2 {[%clk 0:00:57]}  Bg6 {[%clk 0:01:21]} 17. f3 {[%clk 0:00:56]}  Ne8 {[%clk 0:01:17]} 18. Kd2 {[%clk 0:00:51]}  Nd6 {[%clk 0:01:16]} 19. e4 {[%clk 0:00:49]}  f6 {[%clk 0:01:13]} 20. Rd1 {[%clk 0:00:37]}  Bf7 {[%clk 0:01:11]} 21. Kc3 {[%clk 0:00:36]}  b5 {[%clk 0:01:04]} 22. Bxd6 {[%clk 0:00:29]}  cxd6 {[%clk 0:01:05]} 23. cxb5 {[%clk 0:00:29]}  Rb6 {[%clk 0:01:05]} 24. Kd3 {[%clk 0:00:21]}  Kc7 {[%clk 0:00:45]} 25. d5 {[%clk 0:00:15]}  cxd5 {[%clk 0:00:38]} 26. exd5 {[%clk 0:00:14]}  Bxd5 {[%clk 0:00:37]} 27. Kd4 {[%clk 0:00:15]}  Bf7 {[%clk 0:00:27]} 28. Re1 {[%clk 0:00:15]}  Kd7 {[%clk 0:00:27]} 29. Rbe2 {[%clk 0:00:13]}  Re8 {[%clk 0:00:27]} 30. Rxe8 {[%clk 0:00:08]}  Bxe8 {[%clk 0:00:28]} 31. h4 {[%clk 0:00:04]}  Kd8 {[%clk 0:00:21]} 32. g4 {[%clk 0:00:04]}  Bxb5 {[%clk 0:00:20]} 33. Bxb5 {[%clk 0:00:04]}  Rxb5 {[%clk 0:00:21]} 34. Ra1 {[%clk 0:00:04]}  a5 {[%clk 0:00:20]} 35. f4 {[%clk 0:00:04]}  Rb4+ {[%clk 0:00:19]} 36. Kd5 {[%clk 0:00:05]}  Rxf4 {[%clk 0:00:19]} 37. Rxa5 {[%clk 0:00:05]}  Rxg4 {[%clk 0:00:18]} 38. Kxd6 {[%clk 0:00:05]}  Ke8 {[%clk 0:00:17]} 39. Ke6 {[%clk 0:00:05]}  Re4+ {[%clk 0:00:17]} 40. Kf5 {[%clk 0:00:06]}  Rxh4 {[%clk 0:00:17]} 41. Ra8+ {[%clk 0:00:05]}  Ke7 {[%clk 0:00:13]} 42. Ra7+ {[%clk 0:00:06]}  Kd6 {[%clk 0:00:13]} 43. Rxg7 {[%clk 0:00:06]}  Rh6 {[%clk 0:00:11]} 44. Rg2 {[%clk 0:00:02]}  Ke7 {[%clk 0:00:11]} 45. Ra2 {[%clk 0:00:02]}  Rh5+ {[%clk 0:00:11]} 46. Kg4 {[%clk 0:00:02]}  Rg5+ {[%clk 0:00:11]} 47. Kf4 {[%clk 0:00:03]}  Kf7 {[%clk 0:00:11]} 48. Rh2 {[%clk 0:00:03]}  Kg6 {[%clk 0:00:11]} 49. Rc2 {[%clk 0:00:04]}  h5 {[%clk 0:00:11]} 50. Rc8 {[%clk 0:00:04]}  Rg4+ {[%clk 0:00:09]} 51. Kf3 {[%clk 0:00:04]}  Kg5 {[%clk 0:00:09]} 52. Rg8+ {[%clk 0:00:04]}  Kf5 {[%clk 0:00:09]} 53. Rh8 {[%clk 0:00:05]}  Rf4+ {[%clk 0:00:03]} 54. Kg3 {[%clk 0:00:05]}  h4+ {[%clk 0:00:02]} 55. Kh3 {[%clk 0:00:03]}  Ke4 {[%clk 0:00:02]} 56. Re8+ {[%clk 0:00:02]}  Kf3 {[%clk 0:00:02]} 57. Ra8 {[%clk 0:00:03]}  f5 {[%clk 0:00:01]} 58. Ra2 {[%clk 0:00:02]}  Re4 {[%clk 0:00:01]} 59. Ra3+ {[%clk 0:00:02]}  Kf4 {[%clk 0:00:01]} 60. Kxh4 {[%clk 0:00:01]}  Re8 {[%clk 0:00:02]} 61. Ra4+ {[%clk 0:00:02]}  Ke3 {[%clk 0:00:03]} 62. Kg3 {[%clk 0:00:02]}  f4+ {[%clk 0:00:03]} 63. Rxf4 {[%clk 0:00:02]}  Rg8+ {[%clk 0:00:02]} 64. Rg4 {[%clk 0:00:03]}  Rxg4+ {[%clk 0:00:03]} 65. Kxg4 {[%clk 0:00:04]} 1/2-1/2